[Event "12th Arad Open 2019"]
[Site "Arad"]
[Date "2019.07.28"]
[Round "6.31"]
[White "Peycheva, Gergana"]
[Black "Manea, Alexandru"]
[Result "1-0"]
[ECO "E42"]
[WhiteElo "2065"]
[BlackElo "2333"]
[Annotator "NA"]
[PlyCount "67"]
[EventDate "2019.07.24"]
[EventType "swiss"]
[EventCountry "ROU"]
[SourceTitle "playchess.com"]
[Source "ChessBase"]
[SourceQuality "1"]
[TimeControl "40/5400+30:900+30"]

1. d4 {[%emt 0:00:00]} Nf6 {[%emt 0:04:44]} 2. c4 {[%emt 0:00:26]} e6 {[%emt 0:00:09]} 3. Nc3 {[%emt 0:01:15]} Bb4 {[%emt 0:00:08]} 4. e3 {[%emt 0:00:58]} c5 {[%emt 0:00:10]} 5. Nge2 {[%emt 0:01:26]} cxd4 {[%emt 0:15:30]} 6. exd4 {[%emt 0:00:50]} d5 {[%emt 0:01:37]} 7. a3 {[%emt 0:01:34]} Be7 {[%emt 0:00:10]} 8. c5 {[%emt 0:02:42]} Nc6 {[%emt 0:00:07]} 9. b4 {[%emt 0:05:21]} e5 {[%emt 0:00:36]} 10. dxe5 {[%emt 0:07:58]} Nxe5 {[%emt 0:00:05]} 11. Nd4 {[%emt 0:00:40]} O-O {[%emt 0:01:05]} 12. Be2 {[%emt 0:03:07]} Ne4 {[%emt 0:15:53]} 13. Bb2 {[%emt 0:09:22]} Nc4 {[%emt 0:01:18]} 14. Bxc4 {[%emt 0:06:04]} Nxc3 {[%emt 0:00:06]} 15. Bxc3 {[%emt 0:00:24]} dxc4 {[%emt 0:00:06]} 16. O-O {[%emt 0:00:47]} Bf6 {[%emt 0:03:18]} 17. Qd2 {[%emt 0:10:28]} Qd5 {[%emt 0:02:37]} 18. Rad1 {[%emt 0:06:47]} Rd8 {[%emt 0:08:18]} 19. Qc2 {[%emt 0:06:48]} Qh5 {[%emt 0:13:39]} 20. Nb5 {[%emt 0:07:17]} Bf5 {[%emt 0:05:21]} 21. Rxd8+ {[%emt 0:00:21]} Rxd8 {[%emt 0:00:34]} 22. Qc1 {[%emt 0:01:51]} Bxc3 {[%emt 0:19:27]} 23. Qxc3 {[%emt 0:03:20]} Rd1 {[%emt 0:02:33]} 24. f3 {[%emt 0:00:58]} Rxf1+ {[%emt 0:00:11]} 25. Kxf1 {[%emt 0:00:01]} Bd3+ {[%emt 0:00:05]} 26. Kg1 {[%emt 0:02:02]} a6 {[%emt 0:00:28]} 27. Nd6 {[%emt 0:06:38]} Qd5 {[%emt 0:00:05]} 28. h3 {[%emt 0:00:36]} h6 {[%emt 0:00:08]} 29. Ne8 {[%emt 0:03:28]} Qg5 {[%emt 0:02:46]} 30. Qd4 {[%emt 0:00:44]} Kh7 {[%emt 0:00:46]} 31. Nd6 {[%emt 0:00:40]} Qc1+ {[%emt 0:00:40]} 32. Kh2 {[%emt 0:00:02]} Qxa3 {[%emt 0:00:42]} 33. Ne8 {[%emt 0:02:36]} f6 {[%emt 0:02:07]} 34. Qd7 {[%emt 0:00:06]} 1-0

[Event "12th Arad Open 2019"]
[Site "Arad"]
[Date "2019.07.28"]
[Round "6.32"]
[White "Luca, Ionel"]
[Black "Tomici, Stefan"]
[Result "1/2-1/2"]
[ECO "A21"]
[WhiteElo "2039"]
[BlackElo "2329"]
[Annotator "NA"]
[PlyCount "40"]
[EventDate "2019.07.24"]
[EventType "swiss"]
[EventCountry "ROU"]
[SourceTitle "playchess.com"]
[Source "ChessBase"]
[SourceQuality "1"]
[TimeControl "40/5400+30:900+30"]

1. c4 {[%emt 0:00:00]} e5 {[%emt 0:00:00]} 2. Nc3 {[%emt 0:00:00]} Be7 {[%emt 0:00:00]} 3. g3 {[%emt 0:00:00]} f5 {[%emt 0:00:00]} 4. Bg2 {[%emt 0:00:00]} Nf6 {[%emt 0:00:00]} 5. Nf3 {[%emt 0:22:44]} d6 {[%emt 0:00:23]} 6. c5 {[%emt 0:03:59]} O-O {[%emt 0:23:32]} 7. cxd6 {[%emt 0:08:14]} cxd6 {[%emt 0:00:24]} 8. Qb3+ {[%emt 0:09:08]} Kh8 {[%emt 0:00:06]} 9. Ng5 {[%emt 0:01:58]} d5 {[%emt 0:05:37]} 10. d4 {[%emt 0:00:10]} exd4 {[%emt 0:26:49]} 11. Nxd5 {[%emt 0:04:32]} Nxd5 {[%emt 0:00:55]} 12. Bxd5 {[%emt 0:00:08]} Bxg5 {[%emt 0:00:03]} 13. Bxg5 {[%emt 0:00:09]} Qxg5 {[%emt 0:00:32]} 14. Bxb7 {[%emt 0:00:02]} Bxb7 {[%emt 0:04:07]} 15. Qxb7 {[%emt 0:00:04]} Nc6 {[%emt 0:00:22]} 16. Qxc6 {[%emt 0:00:52]} Rac8 {[%emt 0:00:11]} 17. Qa4 {[%emt 0:01:39]} Rc1+ {[%emt 0:04:34]} 18. Rxc1 {[%emt 0:00:10]} Qxc1+ {[%emt 0:00:04]} 19. Qd1 {[%emt 0:00:06]} Qxb2 {[%emt 0:00:14]} 20. O-O {[%emt 0:02:52]} h6 {[%emt 0:09:57]} 1/2-1/2

[Event "12th Arad Open 2019"]
[Site "Arad"]
[Date "2019.07.28"]
[Round "6.33"]
[White "Nastase, Robert-Paul"]
[Black "Martin Perez, Javier"]
[Result "1-0"]
[ECO "C18"]
[WhiteElo "2283"]
[BlackElo "1961"]
[Annotator "NA"]
[PlyCount "53"]
[EventDate "2019.07.24"]
[EventType "swiss"]
[EventCountry "ROU"]
[SourceTitle "playchess.com"]
[Source "ChessBase"]
[SourceQuality "1"]
[TimeControl "40/5400+30:900+30"]

1. e4 {[%emt 0:01:44]} e6 {[%emt 0:00:00]} 2. d4 {[%emt 0:00:03]} d5 {[%emt 0:00:00]} 3. Nc3 {[%emt 0:00:43]} Bb4 {[%emt 0:00:00]} 4. e5 {[%emt 0:00:03]} Ne7 {[%emt 0:00:00]} 5. Qg4 {[%emt 0:00:18]} c5 {[%emt 0:00:34]} 6. a3 {[%emt 0:00:05]} Bxc3+ {[%emt 0:00:17]} 7. bxc3 {[%emt 0:00:04]} Qc7 {[%emt 0:00:14]} 8. Bd3 {[%emt 0:01:37]} cxd4 {[%emt 0:05:25]} 9. Ne2 {[%emt 0:00:12]} Nbc6 {[%emt 0:01:08]} 10. cxd4 {[%emt 0:00:33]} h5 {[%emt 0:03:41]} 11. Qf4 {[%emt 0:01:32]} Qa5+ {[%emt 0:06:21]} 12. Bd2 {[%emt 0:00:18]} Qa4 {[%emt 0:00:13]} 13. O-O {[%emt 0:00:52]} Nf5 {[%emt 0:05:48]} 14. c3 {[%emt 0:01:52]} Na5 {[%emt 0:01:35]} 15. Rfb1 {[%emt 0:04:18]} Nc4 {[%emt 0:02:39]} 16. Rb4 {[%emt 0:00:56]} Qc6 {[%emt 0:00:27]} 17. a4 {[%emt 0:00:08]} O-O {[%emt 0:16:00]} 18. Bc1 {[%emt 0:04:41]} f6 {[%emt 0:06:59]} 19. exf6 {[%emt 0:01:02]} Rxf6 {[%emt 0:00:35]} 20. Qg5 {[%emt 0:06:08]} Bd7 {[%emt 0:05:12]} 21. Qxh5 {[%emt 0:01:51]} Be8 {[%emt 0:07:06]} 22. Qg4 {[%emt 0:01:09]} Ncd6 {[%emt 0:05:37]} 23. Bg5 {[%emt 0:01:12]} Rf8 {[%emt 0:01:04]} 24. f3 {[%emt 0:01:59]} Bd7 {[%emt 0:04:16]} 25. Qh5 {[%emt 0:00:27]} Nf7 {[%emt 0:03:24]} 26. Bf4 {[%emt 0:05:15]} Rae8 {[%emt 0:01:25]} 27. g4 {[%emt 0:01:01]} 1-0

[Event "12th Arad Open 2019"]
[Site "Arad"]
[Date "2019.07.28"]
[Round "6.34"]
[White "Pop, Alexandru"]
[Black "Pislariu, Stefanel-Vasilica"]
[Result "1/2-1/2"]
[ECO "A11"]
[WhiteElo "2276"]
[BlackElo "1934"]
[Annotator "NA"]
[PlyCount "93"]
[EventDate "2019.07.24"]
[EventType "swiss"]
[EventCountry "ROU"]
[SourceTitle "playchess.com"]
[Source "ChessBase"]
[SourceQuality "1"]
[TimeControl "40/5400+30:900+30"]

1. c4 {[%emt 0:00:00]} c6 {[%emt 0:00:00]} 2. Nf3 {[%emt 0:00:00]} d5 {[%emt 0:00:00]} 3. e3 {[%emt 0:00:00]} Nf6 {[%emt 0:00:16]} 4. Nc3 {[%emt 0:00:00]} e6 {[%emt 0:03:02]} 5. b3 {[%emt 0:00:18]} Nbd7 {[%emt 0:01:01]} 6. Bb2 {[%emt 0:00:06]} Bd6 {[%emt 0:01:46]} 7. Be2 {[%emt 0:00:21]} O-O {[%emt 0:01:28]} 8. Qc2 {[%emt 0:00:28]} a6 {[%emt 0:05:32]} 9. g4 {[%emt 0:01:20]} Nxg4 {[%emt 0:05:18]} 10. Rg1 {[%emt 0:00:36]} f5 {[%emt 0:00:35]} 11. h3 {[%emt 0:01:38]} Nge5 {[%emt 0:06:37]} 12. Ng5 {[%emt 0:00:44]} Nf6 {[%emt 0:01:53]} 13. f4 {[%emt 0:00:12]} Ng6 {[%emt 0:04:26]} 14. O-O-O {[%emt 0:00:10]} e5 {[%emt 0:10:49]} 15. fxe5 {[%emt 0:00:37]} Nxe5 {[%emt 0:00:26]} 16. Rg2 {[%emt 0:00:43]} h6 {[%emt 0:05:58]} 17. Nf3 {[%emt 0:00:07]} Nxf3 {[%emt 0:00:22]} 18. Bxf3 {[%emt 0:00:04]} dxc4 {[%emt 0:00:35]} 19. bxc4 {[%emt 0:01:30]} Be6 {[%emt 0:05:28]} 20. Ne2 {[%emt 0:01:02]} Qd7 {[%emt 0:15:47]} 21. Rdg1 {[%emt 0:00:05]} g5 {[%emt 0:03:39]} 22. h4 {[%emt 0:00:04]} g4 {[%emt 0:01:35]} 23. Bxg4 {[%emt 0:00:07]} fxg4 {[%emt 0:03:13]} 24. Nd4 {[%emt 0:00:01]} Kf7 {[%emt 0:02:17]} 25. Rf1 {[%emt 0:01:39]} Ke7 {[%emt 0:04:14]} 26. Qg6 {[%emt 0:01:53]} Rf7 {[%emt 0:02:20]} 27. Rgf2 {[%emt 0:13:25]} Raf8 {[%emt 0:01:49]} 28. c5 {[%emt 0:51:32]} Be5 {[%emt 0:05:19]} 29. Qxh6 {[%emt 0:01:06]} Ne4 {[%emt 0:02:23]} 30. Rxf7+ {[%emt 0:05:29]} Rxf7 {[%emt 0:00:05]} 31. Rxf7+ {[%emt 0:00:10]} Bxf7 {[%emt 0:00:30]} 32. Qh7 {[%emt 0:00:36]} Nxc5 {[%emt 0:01:25]} 33. h5 {[%emt 0:03:02]} Bxd4 {[%emt 0:01:35]} 34. Bxd4 {[%emt 0:00:09]} Qd5 {[%emt 0:01:04]} 35. h6 {[%emt 0:00:06]} Qh1+ {[%emt 0:00:43]} 36. Kc2 {[%emt 0:00:20]} Qh5 {[%emt 0:00:34]} 37. Qh8 {[%emt 0:02:02]} Qg6+ {[%emt 0:01:49]} 38. Kb2 {[%emt 0:01:32]} Nd7 {[%emt 0:01:43]} 39. h7 {[%emt 0:00:31]} g3 {[%emt 0:01:14]} 40. Qg7 {[%emt 0:00:00]} Qxg7 {[%emt 0:00:00]} 41. Bxg7 {[%emt 0:03:05]} g2 {[%emt 0:00:36]} 42. h8=Q {[%emt 0:00:08]} g1=Q {[%emt 0:00:21]} 43. Qh4+ {[%emt 0:00:07]} Ke6 {[%emt 0:03:26]} 44. Qe4+ {[%emt 0:00:08]} Kd6 {[%emt 0:00:26]} 45. Qf4+ {[%emt 0:00:04]} Ke6 {[%emt 0:00:39]} 46. Qe4+ {[%emt 0:00:05]} Kd6 {[%emt 0:00:13]} 47. Qf4+ {[%emt 0:00:05] Ke5} 1/2-1/2

[Event "12th Arad Open 2019"]
[Site "Arad"]
[Date "2019.07.28"]
[Round "6.35"]
[White "Pasti, Aron"]
[Black "Bucur, Denisa-Andreea"]
[Result "1-0"]
[ECO "C17"]
[WhiteElo "2209"]
[BlackElo "1943"]
[Annotator "NA"]
[PlyCount "81"]
[EventDate "2019.07.24"]
[EventType "swiss"]
[EventCountry "ROU"]
[SourceTitle "playchess.com"]
[Source "ChessBase"]
[SourceQuality "1"]
[TimeControl "40/5400+30:900+30"]

1. e4 {[%emt 0:00:00]} e6 {[%emt 0:00:00]} 2. d4 {[%emt 0:00:00]} d5 {[%emt 0:00:00]} 3. Nc3 {[%emt 0:00:00]} Bb4 {[%emt 0:00:00]} 4. e5 {[%emt 0:00:00]} c5 {[%emt 0:00:12]} 5. Bd2 {[%emt 0:00:00]} Ne7 {[%emt 0:00:14]} 6. Nb5 {[%emt 0:00:03]} Bxd2+ {[%emt 0:00:48]} 7. Qxd2 {[%emt 0:00:11]} O-O {[%emt 0:00:20]} 8. dxc5 {[%emt 0:00:06]} Nd7 {[%emt 0:00:32]} 9. Qc3 {[%emt 0:00:49]} f6 {[%emt 0:01:14]} 10. exf6 {[%emt 0:05:55]} Nxf6 {[%emt 0:01:04]} 11. Bd3 {[%emt 0:07:12]} Bd7 {[%emt 0:01:33]} 12. Nf3 {[%emt 0:19:30]} Bxb5 {[%emt 0:03:27]} 13. Bxb5 {[%emt 0:00:55]} Ne4 {[%emt 0:02:00]} 14. Qa3 {[%emt 0:03:03]} Qc7 {[%emt 0:06:43]} 15. O-O {[%emt 0:02:57]} Rf6 {[%emt 0:07:19]} 16. Nd4 {[%emt 0:21:25]} e5 {[%emt 0:11:36]} 17. Nb3 {[%emt 0:09:46]} Raf8 {[%emt 0:14:30]} 18. f3 {[%emt 0:01:00]} Ng5 {[%emt 0:00:18]} 19. Qxa7 {[%emt 0:08:37]} Rg6 {[%emt 0:09:41]} 20. Kh1 {[%emt 0:04:22]} Rh6 {[%emt 0:06:30]} 21. Qa5 {[%emt 0:01:30]} Qb8 {[%emt 0:02:35]} 22. Qd2 {[%emt 0:00:34]} Ne6 {[%emt 0:00:17]} 23. g3 {[%emt 0:04:44]} Nf5 {[%emt 0:06:26]} 24. Kg1 {[%emt 0:03:42]} b6 {[%emt 0:02:38]} 25. c6 {[%emt 0:01:00]} Nfd4 {[%emt 0:02:54]} 26. Nxd4 {[%emt 0:00:08]} Nxd4 {[%emt 0:00:10]} 27. c3 {[%emt 0:01:03]} Nxb5 {[%emt 0:06:53]} 28. Qxd5+ {[%emt 0:00:04]} Kh8 {[%emt 0:00:04]} 29. Qxb5 {[%emt 0:00:03]} Qc8 {[%emt 0:00:18]} 30. Qxb6 {[%emt 0:03:20]} Rxc6 {[%emt 0:00:17]} 31. Qe3 {[%emt 0:00:15]} Qf5 {[%emt 0:01:06]} 32. Qe4 {[%emt 0:01:09]} Qe6 {[%emt 0:02:08]} 33. f4 {[%emt 0:01:43]} Rc4 {[%emt 0:00:51]} 34. Qe3 {[%emt 0:00:24]} Re8 {[%emt 0:00:29]} 35. b3 {[%emt 0:00:36]} Rc7 {[%emt 0:00:38]} 36. fxe5 {[%emt 0:00:12]} h6 {[%emt 0:00:10]} 37. c4 {[%emt 0:00:11]} Rce7 {[%emt 0:00:19]} 38. Rae1 {[%emt 0:01:08]} Qa6 {[%emt 0:00:18]} 39. Qd2 {[%emt 0:00:29]} Qa7+ {[%emt 0:00:15]} 40. Qf2 {[%emt 0:00:00]} Qa5 {[%emt 0:00:00]} 41. e6 {[%emt 0:00:44]} 1-0

[Event "12th Arad Open 2019"]
[Site "Arad"]
[Date "2019.07.28"]
[Round "6.36"]
[White "Turlea, Constantin"]
[Black "Martian, Dragos-Daniel"]
[Result "1-0"]
[ECO "E21"]
[WhiteElo "1938"]
[BlackElo "2201"]
[Annotator "NA"]
[PlyCount "66"]
[EventDate "2019.07.24"]
[EventType "swiss"]
[EventCountry "ROU"]
[SourceTitle "playchess.com"]
[Source "ChessBase"]
[SourceQuality "1"]
[TimeControl "40/5400+30:900+30"]

1. d4 {[%emt 0:01:51]} Nf6 {[%emt 0:00:25]} 2. Nf3 {[%emt 0:01:10]} e6 {[%emt 0:00:06]} 3. c4 {[%emt 0:00:06]} b6 {[%emt 0:00:06]} 4. Nc3 {[%emt 0:00:48]} d5 {[%emt 0:01:22]} 5. g3 {[%emt 0:05:50]} Bb7 {[%emt 0:01:33]} 6. Bg2 {[%emt 0:02:05]} Nbd7 {[%emt 0:00:16]} 7. cxd5 {[%emt 0:03:33]} Nxd5 {[%emt 0:01:10]} 8. O-O {[%emt 0:00:34]} Be7 {[%emt 0:00:48]} 9. Re1 {[%emt 0:02:16]} N7f6 {[%emt 0:06:26]} 10. Qd3 {[%emt 0:13:19]} O-O {[%emt 0:01:15]} 11. e4 {[%emt 0:03:20]} Nxc3 {[%emt 0:00:34]} 12. bxc3 {[%emt 0:00:06]} c5 {[%emt 0:00:17]} 13. Bf4 {[%emt 0:02:48]} cxd4 {[%emt 0:01:36]} 14. cxd4 {[%emt 0:02:41]} Bb4 {[%emt 0:01:34]} 15. Nd2 {[%emt 0:10:03]} Rc8 {[%emt 0:04:33]} 16. Rec1 {[%emt 0:07:30]} h6 {[%emt 0:02:29]} 17. a3 {[%emt 0:02:54]} Be7 {[%emt 0:01:52]} 18. Rc3 {[%emt 0:00:30]} Rxc3 {[%emt 0:00:30]} 19. Qxc3 Qa8 {[%emt 0:00:33]} 20. Qc7 {[%emt 0:06:50]} Re8 {[%emt 0:03:06]} 21. f3 {[%emt 0:00:23]} Bf8 {[%emt 0:01:02]} 22. Qc3 {[%emt 0:03:20]} Rc8 {[%emt 0:00:58]} 23. Qb2 {[%emt 0:02:51]} Rc6 {[%emt 0:02:02]} 24. Rc1 {[%emt 0:01:08]} Qc8 {[%emt 0:02:39]} 25. Nb1 {[%emt 0:13:53]} Ba6 {[%emt 0:04:07]} 26. Bf1 {[%emt 0:03:45]} Bxf1 {[%emt 0:03:05]} 27. Kxf1 {[%emt 0:01:12]} Qa6+ {[%emt 0:00:13]} 28. Kf2 {[%emt 0:03:49]} b5 {[%emt 0:02:45]} 29. Rxc6 {[%emt 0:01:20]} Qxc6 {[%emt 0:00:03]} 30. Nc3 {[%emt 0:02:10]} a6 {[%emt 0:00:40]} 31. Qb3 {[%emt 0:01:48]} Nd7 {[%emt 0:00:51]} 32. Nb1 {[%emt 0:00:37]} Be7 {[%emt 0:03:42]} 33. Bd2 {[%emt 0:00:52]} Qb6 {[%emt 0:02:38]} 1-0

[Event "12th Arad Open 2019"]
[Site "Arad"]
[Date "2019.07.28"]
[Round "6.37"]
[White "Illes, Sandor-Ferenc"]
[Black "Michalicka, Milan"]
[Result "0-1"]
[ECO "B47"]
[WhiteElo "1924"]
[BlackElo "2190"]
[Annotator "NA"]
[PlyCount "57"]
[EventDate "2019.07.24"]
[EventType "swiss"]
[EventCountry "ROU"]
[SourceTitle "playchess.com"]
[Source "ChessBase"]
[SourceQuality "1"]
[TimeControl "40/5400+30:900+30"]

1. e4 {[%emt 0:01:21]} c5 {[%emt 0:00:00]} 2. Nf3 {[%emt 0:00:30]} e6 {[%emt 0:00:00]} 3. d4 {[%emt 0:00:36]} cxd4 {[%emt 0:00:00]} 4. Nxd4 {[%emt 0:00:11]} Nc6 {[%emt 0:00:03]} 5. Nc3 {[%emt 0:02:09]} Qc7 {[%emt 0:00:13]} 6. f4 {[%emt 0:03:10]} a6 {[%emt 0:00:54]} 7. Be3 {[%emt 0:02:17]} b5 {[%emt 0:02:00]} 8. Qf3 {[%emt 0:18:20]} Bb7 {[%emt 0:01:08]} 9. Bd3 {[%emt 0:03:58]} Nf6 {[%emt 0:01:59]} 10. g4 {[%emt 0:06:34]} b4 {[%emt 0:06:08]} 11. Nce2 {[%emt 0:04:30]} d5 {[%emt 0:01:13]} 12. e5 {[%emt 0:02:37]} Ne4 {[%emt 0:00:31]} 13. O-O-O {[%emt 0:11:49]} Nc5 {[%emt 0:03:05]} 14. Kb1 {[%emt 0:03:57]} Na5 {[%emt 0:06:12]} 15. b3 {[%emt 0:08:28]} Nc4 {[%emt 0:03:32]} 16. Bc1 {[%emt 0:01:47]} Na3+ {[%emt 0:04:05]} 17. Bxa3 {[%emt 0:04:15]} bxa3 {[%emt 0:00:11]} 18. Rhe1 {[%emt 0:03:07]} Nxd3 {[%emt 0:10:10]} 19. cxd3 {[%emt 0:01:46]} Bc5 {[%emt 0:00:41]} 20. Rc1 {[%emt 0:04:38]} Qb6 {[%emt 0:00:27]} 21. Qe3 {[%emt 0:02:10]} O-O {[%emt 0:00:56]} 22. f5 {[%emt 0:01:40]} Rfc8 {[%emt 0:02:04]} 23. f6 {[%emt 0:00:32]} a5 {[%emt 0:01:28]} 24. Qg5 {[%emt 0:04:37]} g6 {[%emt 0:02:40]} 25. Nf4 {[%emt 0:04:47]} h6 {[%emt 0:03:05]} 26. Qxh6 {[%emt 0:02:28]} Bf8 {[%emt 0:00:07]} 27. Nxd5 {[%emt 0:00:41]} Bxd5 {[%emt 0:01:01]} 28. Qf4 {[%emt 0:00:24]} Bc5 29. Qg5 0-1

[Event "12th Arad Open 2019"]
[Site "Arad"]
[Date "2019.07.28"]
[Round "6.38"]
[White "Bulau, Andrei-Cristian"]
[Black "Tampea, Radu"]
[Result "0-1"]
[ECO "D31"]
[WhiteElo "2169"]
[BlackElo "1913"]
[Annotator "NA"]
[PlyCount "100"]
[EventDate "2019.07.24"]
[EventType "swiss"]
[EventCountry "ROU"]
[SourceTitle "playchess.com"]
[Source "ChessBase"]
[SourceQuality "1"]
[TimeControl "40/5400+30:900+30"]

1. d4 {[%emt 0:00:00]} d5 {[%emt 0:00:00]} 2. c4 {[%emt 0:00:00]} e6 {[%emt 0:00:00]} 3. Nc3 {[%emt 0:00:00]} a6 {[%emt 0:00:00]} 4. cxd5 {[%emt 0:00:12]} exd5 {[%emt 0:01:03]} 5. Qb3 {[%emt 0:00:08]} Nc6 {[%emt 0:00:07]} 6. Nf3 {[%emt 0:00:10]} Nge7 {[%emt 0:00:09]} 7. Bf4 {[%emt 0:07:52]} Na5 {[%emt 0:00:46]} 8. Qd1 {[%emt 0:01:45]} c6 {[%emt 0:00:39]} 9. e3 {[%emt 0:00:58]} Bf5 {[%emt 0:00:50]} 10. a3 {[%emt 0:10:30]} Ng6 {[%emt 0:13:08]} 11. Bg3 {[%emt 0:01:00]} b5 {[%emt 0:15:13]} 12. Nd2 {[%emt 0:09:28]} Be7 {[%emt 0:05:14]} 13. b4 {[%emt 0:05:55]} Nb7 {[%emt 0:03:24]} 14. Nb3 {[%emt 0:05:10]} a5 {[%emt 0:02:32]} 15. Nc5 {[%emt 0:01:53]} Nxc5 {[%emt 0:01:55]} 16. bxc5 {[%emt 0:00:46]} O-O {[%emt 0:03:34]} 17. Be2 {[%emt 0:01:21]} Bd7 {[%emt 0:10:34]} 18. Bh5 {[%emt 0:13:21]} Nh4 {[%emt 0:06:30]} 19. O-O {[%emt 0:04:04]} Nf5 {[%emt 0:02:04]} 20. Bf3 {[%emt 0:01:19]} Bf6 {[%emt 0:02:47]} 21. Ne2 {[%emt 0:03:36]} Re8 {[%emt 0:00:34]} 22. Qd3 {[%emt 0:00:57]} Qe7 {[%emt 0:03:25]} 23. Nf4 {[%emt 0:02:17]} g6 {[%emt 0:00:53]} 24. Ne2 {[%emt 0:07:43]} Qf8 {[%emt 0:02:30]} 25. Rad1 {[%emt 0:02:21]} Be6 {[%emt 0:10:15]} 26. Rfe1 {[%emt 0:05:05]} Qg7 {[%emt 0:02:48]} 27. h3 {[%emt 0:05:01]} h5 {[%emt 0:01:47]} 28. Bh2 {[%emt 0:04:56]} Nh4 {[%emt 0:00:36]} 29. Nf4 {[%emt 0:00:03]} Nf5 {[%emt 0:03:51]} 30. Qd2 {[%emt 0:02:09]} Bd7 {[%emt 0:00:31]} 31. Nd3 {[%emt 0:00:37]} Nh4 {[%emt 0:00:31]} 32. Be2 {[%emt 0:00:46]} Bf5 {[%emt 0:03:33]} 33. Ne5 {[%emt 0:00:19]} Bxe5 {[%emt 0:00:09]} 34. Bxe5 {[%emt 0:00:04]} f6 {[%emt 0:03:17]} 35. Bg3 {[%emt 0:00:05]} g5 {[%emt 0:00:04]} 36. Bxh5 {[%emt 0:00:14]} Ng6 {[%emt 0:00:04]} 37. Bf3 {[%emt 0:01:30]} a4 {[%emt 0:01:13]} 38. Bd6 {[%emt 0:02:10]} Nh4 {[%emt 0:00:18]} 39. Bh5 {[%emt 0:01:05]} Re6 {[%emt 0:01:53]} 40. f3 {[%emt 0:00:00]} Rc8 {[%emt 0:00:00]} 41. Bg4 {[%emt 0:07:31]} Bxg4 {[%emt 0:02:14]} 42. hxg4 {[%emt 0:00:28]} Rce8 {[%emt 0:00:05]} 43. e4 {[%emt 0:03:47]} dxe4 {[%emt 0:04:02]} 44. d5 {[%emt 0:00:11]} e3 {[%emt 0:00:17]} 45. Qa2 {[%emt 0:01:06]} cxd5 {[%emt 0:00:09]} 46. Qxd5 {[%emt 0:00:01]} Kh7 {[%emt 0:06:01]} 47. c6 {[%emt 0:01:25]} e2 {[%emt 0:03:45]} 48. Rd3 {[%emt 0:00:38]} Qa7+ {[%emt 0:01:32]} 49. Bc5 {[%emt 0:00:41]} Qa5 {[%emt 0:00:09]} 50. Kf2 {[%emt 0:01:07]} Qxe1+ {[%emt 0:00:07] Kg1} 0-1

[Event "12th Arad Open 2019"]
[Site "Arad"]
[Date "2019.07.28"]
[Round "6.39"]
[White "Anghel, Iulian-Mihai"]
[Black "Isfan, Ioan-Marius"]
[Result "0-1"]
[ECO "B34"]
[WhiteElo "1900"]
[BlackElo "2164"]
[Annotator "NA"]
[PlyCount "116"]
[EventDate "2019.07.24"]
[EventType "swiss"]
[EventCountry "ROU"]
[SourceTitle "playchess.com"]
[Source "ChessBase"]
[SourceQuality "1"]
[TimeControl "40/5400+30:900+30"]

1. e4 {[%emt 0:00:00]} c5 {[%emt 0:02:51]} 2. Nf3 {[%emt 0:00:00]} Nc6 {[%emt 0:00:07]} 3. d4 {[%emt 0:00:00]} cxd4 {[%emt 0:00:05]} 4. Nxd4 {[%emt 0:00:05]} g6 {[%emt 0:00:04]} 5. Nc3 {[%emt 0:01:05]} Nf6 {[%emt 0:00:08]} 6. Be3 {[%emt 0:01:33]} Bg7 {[%emt 0:00:07]} 7. f3 {[%emt 0:03:46]} O-O {[%emt 0:00:41]} 8. Qd2 {[%emt 0:03:52]} d5 {[%emt 0:02:18]} 9. Nxc6 {[%emt 0:08:03]} bxc6 {[%emt 0:00:06]} 10. Rd1 {[%emt 0:01:50]} Bb7 {[%emt 0:15:05]} 11. Be2 {[%emt 0:09:36]} e5 {[%emt 0:03:37]} 12. Bc5 {[%emt 0:00:55]} d4 {[%emt 0:02:10]} 13. Na4 {[%emt 0:05:00]} Re8 {[%emt 0:01:19]} 14. O-O {[%emt 0:07:48]} Nd7 {[%emt 0:01:26]} 15. Ba3 {[%emt 0:04:21]} Bf6 {[%emt 0:06:08]} 16. b3 {[%emt 0:06:59]} Bg5 {[%emt 0:03:09]} 17. Qe1 {[%emt 0:00:26]} a5 {[%emt 0:08:59]} 18. c3 {[%emt 0:07:02]} Qc7 {[%emt 0:03:51]} 19. Bc1 {[%emt 0:04:49]} Bf6 {[%emt 0:06:56]} 20. Bb2 {[%emt 0:01:18]} c5 {[%emt 0:00:20]} 21. Qg3 {[%emt 0:04:55]} Nb6 {[%emt 0:02:49]} 22. cxd4 {[%emt 0:02:16]} Nxa4 {[%emt 0:00:16]} 23. bxa4 {[%emt 0:00:11]} cxd4 {[%emt 0:00:05]} 24. Bb5 {[%emt 0:02:21]} Red8 {[%emt 0:00:08]} 25. Rc1 {[%emt 0:06:02]} Qb6 {[%emt 0:03:56]} 26. Kh1 {[%emt 0:00:31]} Rac8 {[%emt 0:00:32]} 27. f4 {[%emt 0:04:38]} Rxc1 {[%emt 0:03:10]} 28. Bxc1 {[%emt 0:02:32]} Bxe4 {[%emt 0:05:04]} 29. fxe5 {[%emt 0:01:13]} Bg7 {[%emt 0:00:10]} 30. Bg5 {[%emt 0:02:45]} Rd5 {[%emt 0:01:11]} 31. Qf4 {[%emt 0:01:26]} Bf5 {[%emt 0:00:19]} 32. Re1 {[%emt 0:04:09]} d3 {[%emt 0:03:00]} 33. Qf3 {[%emt 0:02:44]} Qd4 {[%emt 0:03:39]} 34. Be3 {[%emt 0:01:13]} Qb4 {[%emt 0:02:26]} 35. Rc1 {[%emt 0:00:51]} Rxe5 {[%emt 0:00:31]} 36. h3 {[%emt 0:00:40]} h5 {[%emt 0:03:31]} 37. Rd1 {[%emt 0:00:35]} Qe7 {[%emt 0:12:24]} 38. Bf2 {[%emt 0:00:18]} Be4 {[%emt 0:00:19]} 39. Qf4 {[%emt 0:00:19]} Qb7 {[%emt 0:02:23]} 40. Qg3 {[%emt 0:00:00]} Rd5 {[%emt 0:00:00]} 41. Bc4 {[%emt 0:02:51]} Rf5 {[%emt 0:03:45]} 42. Bxd3 {[%emt 0:05:23]} Bxd3 {[%emt 0:00:13]} 43. Rxd3 {[%emt 0:00:05]} Qb1+ {[%emt 0:00:13]} 44. Bg1 {[%emt 0:00:04]} Qxa2 {[%emt 0:01:20]} 45. Rd8+ {[%emt 0:01:05]} Kh7 {[%emt 0:00:02]} 46. Ra8 {[%emt 0:05:58]} Qxa4 {[%emt 0:02:21]} 47. Qb8 {[%emt 0:00:26]} Qa1 {[%emt 0:02:53]} 48. Qg8+ {[%emt 0:01:10]} Kh6 {[%emt 0:00:02]} 49. Qe8 {[%emt 0:01:05]} Bd4 {[%emt 0:00:27]} 50. Qf8+ {[%emt 0:00:05]} Kg5 {[%emt 0:00:02]} 51. Qd8+ {[%emt 0:02:52]} Bf6 {[%emt 0:00:01]} 52. Qd2+ {[%emt 0:00:29]} Kh4 {[%emt 0:00:12]} 53. Re8 {[%emt 0:00:25]} Be5 {[%emt 0:01:04]} 54. Qd8+ {[%emt 0:00:55]} f6 {[%emt 0:00:23]} 55. Qd3 {[%emt 0:00:26]} Rf1 {[%emt 0:02:07]} 56. g3+ {[%emt 0:00:41]} Kxh3 {[%emt 0:00:23]} 57. g4+ {[%emt 0:00:25]} Kh4 {[%emt 0:00:03]} 58. Rxe5 {[%emt 0:00:25]} Rxg1+ {[%emt 0:00:26]} 0-1